[Event "Titled Tuesday Blitz June 21 Early 2022"]
[White "Dushyant Sharma"]
[Black "Nguyen, Quoc Hy"]
[WhiteFideId "25065130"]
[BlackFideId "12410853"]
[WhiteElo "2105"]
[BlackElo "1938"]
[Result "1-0"]
[Round "03"]
[TimeControl "180+1"]
[Date "2022.06.22"]
[WhiteClock "0:00:07"]
[BlackClock "0:00:01"]

1. e4 {[%clk 0:03:00]}  e5 {[%clk 0:02:58]} 2. Nf3 {[%clk 0:03:01]}  Nc6 {[%clk 0:02:57]} 3. Nc3 {[%clk 0:03:01]}  Bb4 {[%clk 0:02:56]} 4. Bb5 {[%clk 0:03:01]}  Nge7 {[%clk 0:02:55]} 5. O-O {[%clk 0:03:01]}  O-O {[%clk 0:02:55]} 6. d3 {[%clk 0:03:02]}  d6 {[%clk 0:02:54]} 7. Bg5 {[%clk 0:03:02]}  Bg4 {[%clk 0:02:53]} 8. Nd5 {[%clk 0:02:58]}  f6 {[%clk 0:02:52]} 9. Bh4 {[%clk 0:02:48]}  Nxd5 {[%clk 0:02:49]} 10. exd5 {[%clk 0:02:48]}  Nd4 {[%clk 0:02:47]} 11. Bc4 {[%clk 0:02:41]}  Nxf3+ {[%clk 0:02:27]} 12. gxf3 {[%clk 0:02:41]}  Bh3 {[%clk 0:02:27]} 13. Kh1 {[%clk 0:02:37]}  g5 {[%clk 0:02:26]} 14. Rg1 {[%clk 0:02:35]}  Kh8 {[%clk 0:02:23]} 15. Bg3 {[%clk 0:02:34]}  f5 {[%clk 0:02:21]} 16. c3 {[%clk 0:02:32]}  Ba5 {[%clk 0:02:17]} 17. a4 {[%clk 0:02:05]}  Bb6 {[%clk 0:02:14]} 18. a5 {[%clk 0:02:04]}  f4 {[%clk 0:01:55]} 19. axb6 {[%clk 0:02:04]}  cxb6 {[%clk 0:01:56]} 20. d4 {[%clk 0:02:00]}  Qf6 {[%clk 0:01:22]} 21. dxe5 {[%clk 0:01:47]}  dxe5 {[%clk 0:01:19]} 22. Qd2 {[%clk 0:01:47]}  a6 {[%clk 0:01:16]} 23. Rae1 {[%clk 0:01:40]}  Rae8 {[%clk 0:01:11]} 24. Bd3 {[%clk 0:01:38]}  h5 {[%clk 0:01:10]} 25. Be4 {[%clk 0:01:08]}  Rg8 {[%clk 0:00:55]} 26. c4 {[%clk 0:01:03]}  h4 {[%clk 0:00:54]} 27. b4 {[%clk 0:00:38]}  Bf5 {[%clk 0:00:49]} 28. Qd3 {[%clk 0:00:31]}  Bh3 {[%clk 0:00:42]} 29. c5 {[%clk 0:00:28]}  bxc5 {[%clk 0:00:37]} 30. bxc5 {[%clk 0:00:29]}  Rc8 {[%clk 0:00:36]} 31. c6 {[%clk 0:00:29]}  bxc6 {[%clk 0:00:34]} 32. dxc6 {[%clk 0:00:30]}  g4 {[%clk 0:00:25]} 33. Qd7 {[%clk 0:00:15]}  Qh6 {[%clk 0:00:25]} 34. Bxf4 {[%clk 0:00:09]}  exf4 {[%clk 0:00:21]} 35. fxg4 {[%clk 0:00:09]}  f3 {[%clk 0:00:17]} 36. Qd4+ {[%clk 0:00:07]}  Rg7 {[%clk 0:00:15]} 37. Bxf3 {[%clk 0:00:07]}  Rf8 {[%clk 0:00:12]} 38. Bd5 {[%clk 0:00:06]}  Qd6 {[%clk 0:00:09]} 39. Qe5 {[%clk 0:00:05]}  Qxe5 {[%clk 0:00:01]} 40. Rxe5 {[%clk 0:00:06]}  Bxg4 {[%clk 0:00:01]} 41. h3 {[%clk 0:00:07]} 1-0


[Site "https://www.chess.com"]

[Event "Titled Tuesday Blitz June 21 Early 2022"]
[White "Estrada Nieto, Julian"]
[Black "Hartikainen, Jarmo"]
[WhiteFideId "5101018"]
[BlackFideId "503134"]
[WhiteElo "2252"]
[BlackElo "2152"]
[Result "1-0"]
[Round "03"]
[TimeControl "180+1"]
[Date "2022.06.22"]
[WhiteClock "0:01:04"]
[BlackClock "0:00:16"]

1. e4 {[%clk 0:03:00]}  c5 {[%clk 0:02:59]} 2. Nf3 {[%clk 0:03:00]}  Nc6 {[%clk 0:02:59]} 3. Bb5 {[%clk 0:03:00]}  g6 {[%clk 0:02:59]} 4. Bxc6 {[%clk 0:03:00]}  dxc6 {[%clk 0:02:59]} 5. d3 {[%clk 0:03:00]}  Bg4 {[%clk 0:02:59]} 6. Nbd2 {[%clk 0:02:52]}  Bg7 {[%clk 0:02:57]} 7. h3 {[%clk 0:02:52]}  Bxf3 {[%clk 0:02:56]} 8. Nxf3 {[%clk 0:02:53]}  e5 {[%clk 0:02:53]} 9. O-O {[%clk 0:02:52]}  Qc7 {[%clk 0:02:50]} 10. a4 {[%clk 0:02:51]}  Nf6 {[%clk 0:02:47]} 11. Be3 {[%clk 0:02:46]}  Nd7 {[%clk 0:02:45]} 12. Nd2 {[%clk 0:02:45]}  O-O {[%clk 0:02:40]} 13. a5 {[%clk 0:02:41]}  b6 {[%clk 0:02:33]} 14. Qb1 {[%clk 0:02:37]}  f5 {[%clk 0:02:22]} 15. Qa2+ {[%clk 0:02:36]}  Kh8 {[%clk 0:02:17]} 16. axb6 {[%clk 0:02:25]}  axb6 {[%clk 0:01:16]} 17. Qxa8 {[%clk 0:02:24]}  Rxa8 {[%clk 0:01:15]} 18. Rxa8+ {[%clk 0:02:24]}  Nf8 {[%clk 0:01:15]} 19. Rfa1 {[%clk 0:01:27]}  f4 {[%clk 0:01:13]} 20. R1a7 {[%clk 0:01:24]}  Qd6 {[%clk 0:00:32]} 21. Nc4 {[%clk 0:01:24]}  Qe6 {[%clk 0:00:24]} 22. Bd2 {[%clk 0:01:22]}  b5 {[%clk 0:00:18]} 23. Nb6 {[%clk 0:01:16]}  f3 {[%clk 0:00:18]} 24. Nd7 {[%clk 0:01:11]}  Kg8 {[%clk 0:00:15]} 25. Nxf8 {[%clk 0:01:04]}  Bxf8 {[%clk 0:00:16]} 26. Bh6 {[%clk 0:01:04]} 1-0


[Site "https://www.chess.com"]

[Event "Titled Tuesday Blitz June 21 Early 2022"]
[White "Fier, Alexandr"]
[Black "Chigaev, Maksim"]
[WhiteFideId "2107139"]
[BlackFideId "4108116"]
[WhiteElo "2571"]
[BlackElo "2457"]
[Result "1/2-1/2"]
[Round "03"]
[TimeControl "180+1"]
[Date "2022.06.21"]
[WhiteClock "0:01:50"]
[BlackClock "0:00:18"]

1. d4 {[%clk 0:03:00]}  Nf6 {[%clk 0:02:56]} 2. c4 {[%clk 0:03:01]}  e6 {[%clk 0:02:54]} 3. Nc3 {[%clk 0:03:01]}  Bb4 {[%clk 0:02:54]} 4. e3 {[%clk 0:03:01]}  c5 {[%clk 0:02:53]} 5. Ne2 {[%clk 0:03:01]}  d5 {[%clk 0:02:53]} 6. dxc5 {[%clk 0:02:46]}  O-O {[%clk 0:02:52]} 7. cxd5 {[%clk 0:02:38]}  exd5 {[%clk 0:02:52]} 8. g3 {[%clk 0:02:37]}  Bg4 {[%clk 0:02:52]} 9. Bg2 {[%clk 0:02:37]}  Na6 {[%clk 0:02:45]} 10. O-O {[%clk 0:02:37]}  Bxc3 {[%clk 0:02:42]} 11. bxc3 {[%clk 0:02:37]}  Nxc5 {[%clk 0:02:43]} 12. h3 {[%clk 0:02:36]}  Bf5 {[%clk 0:02:26]} 13. Nf4 {[%clk 0:02:34]}  Be4 {[%clk 0:02:19]} 14. Ba3 {[%clk 0:02:32]}  Bxg2 {[%clk 0:02:16]} 15. Kxg2 {[%clk 0:02:32]}  Rc8 {[%clk 0:02:15]} 16. Qd4 {[%clk 0:02:30]}  b6 {[%clk 0:02:15]} 17. Rfd1 {[%clk 0:02:29]}  Re8 {[%clk 0:02:09]} 18. Nxd5 {[%clk 0:02:28]}  Nxd5 {[%clk 0:02:06]} 19. Qxd5 {[%clk 0:02:28]}  Qxd5+ {[%clk 0:02:02]} 20. Rxd5 {[%clk 0:02:28]}  Ne4 {[%clk 0:02:03]} 21. Bb2 {[%clk 0:02:03]}  Nxc3 {[%clk 0:01:40]} 22. Bxc3 {[%clk 0:02:03]}  Rxc3 {[%clk 0:01:41]} 23. a4 {[%clk 0:02:04]}  Rc7 {[%clk 0:01:34]} 24. a5 {[%clk 0:02:04]}  bxa5 {[%clk 0:01:35]} 25. Rdxa5 {[%clk 0:02:04]}  Ree7 {[%clk 0:01:35]} 26. g4 {[%clk 0:02:04]}  h6 {[%clk 0:01:34]} 27. Ra6 {[%clk 0:02:04]}  g6 {[%clk 0:01:34]} 28. h4 {[%clk 0:02:03]}  Kg7 {[%clk 0:01:29]} 29. R1a5 {[%clk 0:01:59]}  Rc4 {[%clk 0:01:24]} 30. Ra4 {[%clk 0:01:59]}  Rxa4 {[%clk 0:01:19]} 31. Rxa4 {[%clk 0:01:59]}  Rb7 {[%clk 0:01:19]} 32. Ra6 {[%clk 0:01:58]}  Rc7 {[%clk 0:01:19]} 33. f4 {[%clk 0:01:58]}  Rb7 {[%clk 0:01:18]} 34. Kf3 {[%clk 0:01:58]}  Rc7 {[%clk 0:01:17]} 35. h5 {[%clk 0:01:59]}  gxh5 {[%clk 0:01:15]} 36. gxh5 {[%clk 0:02:00]}  Rd7 {[%clk 0:01:04]} 37. Kg4 {[%clk 0:02:00]}  Re7 {[%clk 0:01:03]} 38. Kf3 {[%clk 0:01:58]}  Rd7 {[%clk 0:00:56]} 39. e4 {[%clk 0:01:59]}  Rb7 {[%clk 0:00:52]} 40. e5 {[%clk 0:01:59]}  Rc7 {[%clk 0:00:44]} 41. Kg4 {[%clk 0:01:59]}  Rb7 {[%clk 0:00:43]} 42. Kf5 {[%clk 0:02:00]}  Rc7 {[%clk 0:00:43]} 43. Ra1 {[%clk 0:02:00]}  Rb7 {[%clk 0:00:41]} 44. Ra6 {[%clk 0:01:59]}  Rc7 {[%clk 0:00:40]} 45. Ke4 {[%clk 0:01:58]}  Rc4+ {[%clk 0:00:38]} 46. Ke3 {[%clk 0:01:58]}  Rc7 {[%clk 0:00:29]} 47. f5 {[%clk 0:01:58]}  Rb7 {[%clk 0:00:28]} 48. f6+ {[%clk 0:01:58]}  Kg8 {[%clk 0:00:21]} 49. Ke4 {[%clk 0:01:57]}  Rc7 {[%clk 0:00:19]} 50. Kf5 {[%clk 0:01:58]}  Rb7 {[%clk 0:00:19]} 51. e6 {[%clk 0:01:57]}  Rb5+ {[%clk 0:00:18]} 52. Ke4 {[%clk 0:01:54]}  fxe6 {[%clk 0:00:18]} 53. Rxe6 {[%clk 0:01:51]}  Rxh5 {[%clk 0:00:18]} 54. Ra6 {[%clk 0:01:51]}  Kf7 {[%clk 0:00:18]} 55. Rxa7+ {[%clk 0:01:50]} 1/2-1/2


[Site "https://www.chess.com"]

[Event "Titled Tuesday Blitz June 21 Early 2022"]
[White "Fromm, Marius"]
[Black "Gatterer, Florian"]
[WhiteFideId "12993190"]
[BlackFideId "811688"]
[WhiteElo "2274"]
[BlackElo "2218"]
[Result "1-0"]
[Round "03"]
[TimeControl "180+1"]
[Date "2022.06.22"]
[WhiteClock "0:00:03"]
[BlackClock "0:00:04"]

1. e4 {[%clk 0:03:00]}  c5 {[%clk 0:02:56]} 2. Nf3 {[%clk 0:03:00]}  Nc6 {[%clk 0:02:57]} 3. Bb5 {[%clk 0:03:00]}  e5 {[%clk 0:02:56]} 4. O-O {[%clk 0:03:00]}  Bd6 {[%clk 0:02:55]} 5. c3 {[%clk 0:02:58]}  a6 {[%clk 0:02:55]} 6. Ba4 {[%clk 0:02:59]}  b5 {[%clk 0:02:54]} 7. Bc2 {[%clk 0:02:59]}  c4 {[%clk 0:02:54]} 8. b3 {[%clk 0:02:56]}  cxb3 {[%clk 0:02:43]} 9. axb3 {[%clk 0:02:55]}  Nge7 {[%clk 0:02:43]} 10. d4 {[%clk 0:02:43]}  exd4 {[%clk 0:02:43]} 11. cxd4 {[%clk 0:02:43]}  Nb4 {[%clk 0:02:42]} 12. e5 {[%clk 0:02:26]}  Bc7 {[%clk 0:02:41]} 13. Be4 {[%clk 0:02:26]}  Nbd5 {[%clk 0:02:39]} 14. Bg5 {[%clk 0:02:23]}  Bb7 {[%clk 0:02:38]} 15. Qd2 {[%clk 0:02:13]}  h6 {[%clk 0:02:36]} 16. Bh4 {[%clk 0:02:13]}  O-O {[%clk 0:02:16]} 17. Nc3 {[%clk 0:02:11]}  Ba5 {[%clk 0:02:03]} 18. Rxa5 {[%clk 0:02:07]}  Qxa5 {[%clk 0:01:59]} 19. Nxd5 {[%clk 0:02:07]}  Qxd2 {[%clk 0:01:57]} 20. Nxe7+ {[%clk 0:02:07]}  Kh8 {[%clk 0:01:53]} 21. Nxd2 {[%clk 0:02:08]}  Bxe4 {[%clk 0:01:40]} 22. Nxe4 {[%clk 0:02:09]}  a5 {[%clk 0:01:36]} 23. Nd6 {[%clk 0:02:09]}  a4 {[%clk 0:01:35]} 24. bxa4 {[%clk 0:02:09]}  bxa4 {[%clk 0:01:35]} 25. Ra1 {[%clk 0:02:08]}  a3 {[%clk 0:01:35]} 26. Kf1 {[%clk 0:01:31]}  Rfb8 {[%clk 0:01:25]} 27. Nxf7+ {[%clk 0:01:22]}  Kh7 {[%clk 0:01:23]} 28. g4 {[%clk 0:01:14]}  a2 {[%clk 0:01:21]} 29. Rxa2 {[%clk 0:01:14]}  Rxa2 {[%clk 0:01:21]} 30. Nd6 {[%clk 0:01:12]}  Rb4 {[%clk 0:01:08]} 31. Nef5 {[%clk 0:00:54]}  g6 {[%clk 0:01:08]} 32. Ne3 {[%clk 0:00:55]}  Rxd4 {[%clk 0:01:07]} 33. Bg3 {[%clk 0:00:55]}  Rd3 {[%clk 0:00:52]} 34. h3 {[%clk 0:00:52]}  Kg8 {[%clk 0:00:49]} 35. Bf4 {[%clk 0:00:51]}  Kh7 {[%clk 0:00:48]} 36. h4 {[%clk 0:00:51]}  Kg7 {[%clk 0:00:41]} 37. h5 {[%clk 0:00:50]}  g5 {[%clk 0:00:37]} 38. Bg3 {[%clk 0:00:48]}  Kh7 {[%clk 0:00:35]} 39. Ndf5 {[%clk 0:00:46]}  Rb2 {[%clk 0:00:30]} 40. Kg2 {[%clk 0:00:45]}  Ra2 {[%clk 0:00:28]} 41. Kf3 {[%clk 0:00:45]}  Rb2 {[%clk 0:00:28]} 42. Ke4 {[%clk 0:00:46]}  Ra3 {[%clk 0:00:22]} 43. Nd5 {[%clk 0:00:41]}  Ra4+ {[%clk 0:00:20]} 44. Kf3 {[%clk 0:00:41]}  Rb3+ {[%clk 0:00:20]} 45. Nfe3 {[%clk 0:00:41]}  Rd4 {[%clk 0:00:18]} 46. Nf6+ {[%clk 0:00:40]}  Kg7 {[%clk 0:00:17]} 47. Kg2 {[%clk 0:00:40]}  Kf7 {[%clk 0:00:16]} 48. Nf5 {[%clk 0:00:39]}  Rd2 {[%clk 0:00:15]} 49. Nxh6+ {[%clk 0:00:39]}  Ke6 {[%clk 0:00:15]} 50. Nf5 {[%clk 0:00:35]}  d5 {[%clk 0:00:14]} 51. h6 {[%clk 0:00:35]}  Rb8 {[%clk 0:00:13]} 52. h7 {[%clk 0:00:29]}  Rh8 {[%clk 0:00:13]} 53. Nd6 {[%clk 0:00:22]}  d4 {[%clk 0:00:11]} 54. Nde4 {[%clk 0:00:22]}  Ra2 {[%clk 0:00:09]} 55. Nxg5+ {[%clk 0:00:23]}  Ke7 {[%clk 0:00:10]} 56. Kf3 {[%clk 0:00:22]}  d3 {[%clk 0:00:10]} 57. Ke3 {[%clk 0:00:22]}  d2 {[%clk 0:00:10]} 58. Ke2 {[%clk 0:00:23]}  Rd8 {[%clk 0:00:09]} 59. Nd5+ {[%clk 0:00:06]}  Rxd5 {[%clk 0:00:08]} 60. h8=Q {[%clk 0:00:06]}  d1=Q+ {[%clk 0:00:07]} 61. Ke3 {[%clk 0:00:07]}  Ra3+ {[%clk 0:00:04]} 62. Kf4 {[%clk 0:00:03]} 1-0


[Site "https://www.chess.com"]

[Event "Titled Tuesday Blitz June 21 Early 2022"]
[White "Harvey, Marcus R"]
[Black "Daeschler, Florian"]
[WhiteFideId "400092"]
[BlackFideId "20678193"]
[WhiteElo "2485"]
[BlackElo "2221"]
[Result "1-0"]
[Round "03"]
[TimeControl "180+1"]
[Date "2022.06.22"]
[WhiteClock "0:01:09"]
[BlackClock "0:00:26"]

1. d4 {[%clk 0:03:00]}  Nf6 {[%clk 0:02:59]} 2. c4 {[%clk 0:03:00]}  c5 {[%clk 0:02:59]} 3. d5 {[%clk 0:03:00]}  e6 {[%clk 0:03:00]} 4. Nc3 {[%clk 0:03:00]}  exd5 {[%clk 0:03:00]} 5. cxd5 {[%clk 0:03:01]}  d6 {[%clk 0:03:01]} 6. e4 {[%clk 0:03:01]}  g6 {[%clk 0:03:02]} 7. f4 {[%clk 0:03:01]}  Bg7 {[%clk 0:03:02]} 8. Bb5+ {[%clk 0:03:00]}  Nfd7 {[%clk 0:03:03]} 9. a4 {[%clk 0:03:00]}  O-O {[%clk 0:03:03]} 10. Nf3 {[%clk 0:02:59]}  Re8 {[%clk 0:03:03]} 11. O-O {[%clk 0:02:59]}  Na6 {[%clk 0:03:03]} 12. Be3 {[%clk 0:02:51]}  Nb4 {[%clk 0:03:03]} 13. Bf2 {[%clk 0:02:50]}  a6 {[%clk 0:03:03]} 14. Be2 {[%clk 0:02:50]}  Nf6 {[%clk 0:03:00]} 15. Bh4 {[%clk 0:02:42]}  Qc7 {[%clk 0:03:00]} 16. e5 {[%clk 0:02:39]}  Ng4 {[%clk 0:02:52]} 17. Qd2 {[%clk 0:02:24]}  dxe5 {[%clk 0:02:51]} 18. d6 {[%clk 0:02:24]}  Qd7 {[%clk 0:02:44]} 19. h3 {[%clk 0:02:19]}  e4 {[%clk 0:02:30]} 20. hxg4 {[%clk 0:02:09]}  exf3 {[%clk 0:02:29]} 21. Bxf3 {[%clk 0:02:07]}  Bd4+ {[%clk 0:02:30]} 22. Bf2 {[%clk 0:02:06]}  Qxd6 {[%clk 0:02:29]} 23. Rad1 {[%clk 0:01:53]}  Bxf2+ {[%clk 0:02:23]} 24. Qxf2 {[%clk 0:01:42]}  Qxf4 {[%clk 0:02:23]} 25. Qxc5 {[%clk 0:01:41]}  Be6 {[%clk 0:02:17]} 26. Ne4 {[%clk 0:01:37]}  Nc6 {[%clk 0:02:01]} 27. Qc3 {[%clk 0:01:29]}  Ne5 {[%clk 0:01:42]} 28. g5 {[%clk 0:01:26]}  Rec8 {[%clk 0:01:20]} 29. Qd4 {[%clk 0:01:22]}  Rc4 {[%clk 0:01:12]} 30. Nf6+ {[%clk 0:01:20]}  Kg7 {[%clk 0:01:03]} 31. Qxf4 {[%clk 0:01:19]}  Rxf4 {[%clk 0:01:03]} 32. Bxb7 {[%clk 0:01:19]}  Rxf1+ {[%clk 0:01:00]} 33. Kxf1 {[%clk 0:01:18]}  Rb8 {[%clk 0:01:00]} 34. Bxa6 {[%clk 0:01:17]}  Rxb2 {[%clk 0:00:58]} 35. Rd8 {[%clk 0:01:17]}  Rb1+ {[%clk 0:00:43]} 36. Ke2 {[%clk 0:01:12]}  Rb2+ {[%clk 0:00:43]} 37. Kd1 {[%clk 0:01:09]}  Rb1+ {[%clk 0:00:40]} 38. Kd2 {[%clk 0:01:09]}  Rb2+ {[%clk 0:00:26]} 39. Kc1 {[%clk 0:01:09]} 1-0


[Site "https://www.chess.com"]

[Event "Titled Tuesday Blitz June 21 Early 2022"]
[White "Horak, Martin"]
[Black "Karttunen, Mika"]
[WhiteFideId "367095"]
[BlackFideId "502081"]
[WhiteElo "1997"]
[BlackElo "2343"]
[Result "0-1"]
[Round "03"]
[TimeControl "180+1"]
[Date "2022.06.22"]
[WhiteClock "0:00:05"]
[BlackClock "0:00:15"]

1. e4 {[%clk 0:03:00]}  c5 {[%clk 0:02:58]} 2. Nc3 {[%clk 0:02:59]}  Nc6 {[%clk 0:02:57]} 3. Bb5 {[%clk 0:02:59]}  Nd4 {[%clk 0:02:57]} 4. Nf3 {[%clk 0:03:00]}  Nxb5 {[%clk 0:02:57]} 5. Nxb5 {[%clk 0:03:00]}  a6 {[%clk 0:02:57]} 6. Nc3 {[%clk 0:03:00]}  b5 {[%clk 0:02:58]} 7. d4 {[%clk 0:03:00]}  cxd4 {[%clk 0:02:57]} 8. Qxd4 {[%clk 0:03:00]}  d6 {[%clk 0:02:54]} 9. Bg5 {[%clk 0:02:55]}  Bb7 {[%clk 0:02:51]} 10. O-O {[%clk 0:02:46]}  e5 {[%clk 0:02:24]} 11. Qd3 {[%clk 0:02:33]}  f6 {[%clk 0:02:08]} 12. Be3 {[%clk 0:02:27]}  Ne7 {[%clk 0:02:07]} 13. Rfd1 {[%clk 0:02:15]}  Ng6 {[%clk 0:01:32]} 14. a4 {[%clk 0:02:09]}  b4 {[%clk 0:01:28]} 15. Nd5 {[%clk 0:02:09]}  Bxd5 {[%clk 0:01:28]} 16. Qxd5 {[%clk 0:02:10]}  Qc8 {[%clk 0:01:15]} 17. Nd2 {[%clk 0:01:59]}  Ne7 {[%clk 0:01:04]} 18. Qd3 {[%clk 0:01:53]}  Qc6 {[%clk 0:00:59]} 19. Nc4 {[%clk 0:01:50]}  Nc8 {[%clk 0:00:57]} 20. Na5 {[%clk 0:01:29]}  Qc7 {[%clk 0:00:57]} 21. Qd5 {[%clk 0:01:29]}  Rb8 {[%clk 0:00:57]} 22. Nc4 {[%clk 0:01:29]}  Be7 {[%clk 0:00:51]} 23. Rd3 {[%clk 0:01:15]}  Qb7 {[%clk 0:00:46]} 24. Rad1 {[%clk 0:01:02]}  Qxd5 {[%clk 0:00:46]} 25. Rxd5 {[%clk 0:01:03]}  O-O {[%clk 0:00:38]} 26. Na5 {[%clk 0:00:59]}  f5 {[%clk 0:00:31]} 27. Nc6 {[%clk 0:00:49]}  Rb7 {[%clk 0:00:31]} 28. f3 {[%clk 0:00:40]}  fxe4 {[%clk 0:00:27]} 29. fxe4 {[%clk 0:00:40]}  Rc7 {[%clk 0:00:25]} 30. Nxb4 {[%clk 0:00:36]}  Rc4 {[%clk 0:00:23]} 31. c3 {[%clk 0:00:24]}  Rxe4 {[%clk 0:00:23]} 32. Bf2 {[%clk 0:00:21]}  Re2 {[%clk 0:00:23]} 33. R1d2 {[%clk 0:00:20]}  Rxd2 {[%clk 0:00:20]} 34. Rxd2 {[%clk 0:00:21]}  a5 {[%clk 0:00:20]} 35. Nc6 {[%clk 0:00:18]}  Bd8 {[%clk 0:00:20]} 36. b4 {[%clk 0:00:12]}  axb4 {[%clk 0:00:19]} 37. cxb4 {[%clk 0:00:13]}  Bb6 {[%clk 0:00:19]} 38. Bxb6 {[%clk 0:00:10]}  Nxb6 {[%clk 0:00:19]} 39. a5 {[%clk 0:00:10]}  Nc4 {[%clk 0:00:20]} 40. Ra2 {[%clk 0:00:10]}  Ne3 {[%clk 0:00:19]} 41. h3 {[%clk 0:00:09]}  d5 {[%clk 0:00:15]} 42. a6 {[%clk 0:00:09]}  d4 {[%clk 0:00:15]} 43. a7 {[%clk 0:00:09]}  d3 {[%clk 0:00:16]} 44. a8=Q {[%clk 0:00:08]}  Rxa8 {[%clk 0:00:15]} 45. Rxa8+ {[%clk 0:00:09]}  Kf7 {[%clk 0:00:16]} 46. Rd8 {[%clk 0:00:09]}  e4 {[%clk 0:00:16]} 47. Rd4 {[%clk 0:00:08]}  Nc2 {[%clk 0:00:15]} 48. Ne5+ {[%clk 0:00:05]}  Kf6 {[%clk 0:00:14]} 49. Ng4+ {[%clk 0:00:04]}  Kg5 {[%clk 0:00:14]} 50. Rd8 {[%clk 0:00:04]}  h5 {[%clk 0:00:13]} 51. Nf2 {[%clk 0:00:04]}  Kf4 {[%clk 0:00:13]} 52. Kf1 {[%clk 0:00:03]}  Nxb4 {[%clk 0:00:13]} 53. Ke1 {[%clk 0:00:03]}  Nc2+ {[%clk 0:00:13]} 54. Kd2 {[%clk 0:00:03]}  e3+ {[%clk 0:00:13]} 55. Kxd3 {[%clk 0:00:03]}  exf2 {[%clk 0:00:13]} 56. Rf8+ {[%clk 0:00:04]}  Kg3 {[%clk 0:00:13]} 57. Kxc2 {[%clk 0:00:05]}  Kxg2 {[%clk 0:00:14]} 58. Kd3 {[%clk 0:00:04]}  f1=Q+ {[%clk 0:00:14]} 59. Rxf1 {[%clk 0:00:05]}  Kxf1 {[%clk 0:00:15]} 60. Ke4 {[%clk 0:00:04]}  Kg2 {[%clk 0:00:15]} 61. Kf4 {[%clk 0:00:05]}  Kxh3 {[%clk 0:00:15]} 0-1


[Site "https://www.chess.com"]